fUST/lending_fUST_20250203
["ID","MTS","AMOUNT","RATE_DAILY","PERIOD"]
[351425507,1738566650391,-986.66,0.0001726,2]
[351425508,1738566650404,-500.0,0.0001726,2]
[351425509,1738566650417,-500.0,0.0001726,2]
[351425510,1738566650430,-3160.39,0.0001726,2]
[351425511,1738566650443,-500.0,0.0001726,2]
[351425512,1738566650455,-500.0,0.0001726,2]
[351425513,1738566650468,-9304.74,0.0001726,2]
[351425514,1738566650481,-500.0,0.0001726,2]
[351425515,1738566650495,-500.0,0.0001726,2]
[351425516,1738566650508,-1439.17,0.0001726,2]
[351425517,1738566650523,-215.30027585,0.0001726,2]
[351425518,1738566650536,-500.0,0.0001726,2]
[351425519,1738566650550,-1203.81,0.0001726,2]
[351425520,1738566650563,-500.0,0.0001726,2]
[351425521,1738566650579,-593.75,0.0001726,2]
[351425522,1738566650591,-500.0,0.0001726,2]
[351425523,1738566650604,-500.0,0.0001726,2]
[351425524,1738566650619,-500.0,0.0001726,2]
[351425525,1738566650631,-500.0,0.0001726,2]
[351425526,1738566650644,-589.27,0.0001726,2]
[351425527,1738566650657,-829.0,0.0001726,2]
[351425528,1738566650669,-646.74,0.0001726,2]
[351425529,1738566650683,-500.0,0.0001726,2]
[351425530,1738566650695,-500.0,0.0001726,2]
[351425531,1738566650709,-500.0,0.0001726,2]
[351425532,1738566650722,-776.57,0.0001726,2]
[351425533,1738566650735,-60036.29,0.0001726,2]
[351425534,1738566650747,-523.17670958,0.0001726,2]
[351425535,1738566650761,-747.11,0.0001726,2]
[351425536,1738566650774,-500.0,0.0001726,2]
[351425537,1738566650786,-500.0,0.0001726,2]
[351425538,1738566650799,-1220.82,0.0001726,2]
[351425539,1738566650812,-500.0,0.0001726,2]
[351425540,1738566650825,-500.0,0.0001726,2]
[351425541,1738566650838,-500.0,0.0001726,2]
[351425542,1738566650848,-500.0,0.0001726,2]
[351425543,1738566650858,-1343.37,0.0001726,2]
[351425544,1738566650867,-13816.97,0.0001726,2]
[351425545,1738566650877,-500.0,0.0001726,2]
[351425546,1738566650886,-500.0,0.0001726,2]
[351425547,1738566650896,-500.0,0.0001726,2]
[351425548,1738566651072,-704.42,0.0001726,2]
[351425549,1738566651084,-500.0,0.0001726,2]
[351425550,1738566651094,-2164.57,0.0001726,2]
[351425551,1738566651103,-2634.75,0.0001726,2]
[351425552,1738566651112,-462.30938712,0.0001726,2]
[351425553,1738566651123,-894.5,0.0001726,2]
[351425554,1738566651132,-538.94,0.0001726,2]
[351425555,1738566651141,-500.0,0.0001726,2]
[351425556,1738566651150,-1586.39,0.0001726,2]
[351425557,1738566651159,-609.26,0.0001726,2]
[351425558,1738566651168,-367.15,0.0001726,2]
[351425559,1738566651177,-500.0,0.0001726,2]
[351425560,1738566651186,-5712.66,0.0001726,2]
[351425561,1738566651196,-1112.34,0.0001726,2]
[351425562,1738566651205,-1163.8,0.0001726,2]
[351425563,1738566651214,-795.43,0.0001726,2]
[351425564,1738566651223,-500.0,0.0001726,2]
[351425565,1738566651232,-500.0,0.0001726,2]
[351425566,1738566651241,-500.0,0.0001726,2]
[351425567,1738566651251,-500.0,0.0001726,2]
[351425568,1738566651260,-575.26,0.0001726,2]
[351425569,1738566651269,-722.58,0.0001726,2]
[351425570,1738566651279,-500.0,0.0001726,2]
[351425571,1738566651288,-2753.55,0.0001726,2]
[351425572,1738566651298,-500.0,0.0001726,2]
[351425573,1738566651308,-500.0,0.0001726,2]
[351425574,1738566651318,-1000.0,0.00017286,2]
[351425575,1738566651327,-1000.0,0.00017291,2]
[351425576,1738566651337,-160.0,0.00017296,3]
[351425577,1738566651347,-372.7831712,0.00017298,2]
[351425578,1738566651357,-154.49192,0.00017313,4]
[351425579,1738566651368,-868.8844043,0.00017321,2]
[351425580,1738566651378,-501.07010886,0.00017321,2]
[351425581,1738566651387,-191.96868813,0.00017321,2]
[351425582,1738566651398,-1000.0,0.00017321,2]
[351425583,1738566651408,-1001.284518,0.00017321,2]
[351425584,1738566651417,-1433.14991822,0.00017337,2]
[351425585,1738566651427,-154.49192,0.00017346,3]
[351425586,1738566651436,-357318.62189662,0.00017397,5]
[351425587,1738566651445,-151.0,0.00017397,2]
[351425588,1738566651455,-151.0,0.00017397,2]
[351425589,1738566651464,-151.0,0.00017397,2]
[351425590,1738566651474,-151.0,0.00017397,2]
[351425591,1738566651483,-209.615346,0.00017397,2]
[351425592,1738566651493,-209.615346,0.00017397,2]
[351425593,1738566651503,-500.0,0.00017397,2]
[351425594,1738566651513,-500.0,0.00017397,2]
[351425595,1738566651525,-524.97578002,0.00017397,2]
[351425596,1738566651534,-500.0,0.00017397,2]
[351425597,1738566651543,-500.0,0.00017397,2]
[351425598,1738566651554,-545.77269703,0.00017397,2]
[351425599,1738566651563,-500.0,0.00017397,2]
[351425600,1738566651571,-1984.980134,0.00017397,2]
[351425601,1738566651581,-1984.980134,0.00017397,2]
[351425602,1738566651591,-500.0,0.00017397,2]
[351425603,1738566651601,-701.552,0.00017397,2]
[351425604,1738566651610,-158.45959359,0.00017397,2]
[351425605,1738566651622,-527.36835334,0.00017397,2]
[351425606,1738566651631,-500.0,0.00017397,2]
[351425607,1738566651641,-500.0,0.00017397,2]
[351425608,1738566651650,-364.268098,0.00017397,2]
[351425609,1738566651659,-364.268098,0.00017397,2]
[351425610,1738566651668,-223.599696,0.00017397,2]
[351425611,1738566651678,-500.0,0.00017397,2]
[351425612,1738566651687,-223.599696,0.00017397,2]
[351425613,1738566651696,-597.26,0.00017397,2]
[351425614,1738566651706,-554.86,0.00017397,2]
[351425615,1738566651715,-151.0,0.00017397,2]
[351425616,1738566651725,-500.0,0.00017397,2]
[351425617,1738566651734,-151.0,0.00017397,2]
[351425618,1738566651743,-500.0,0.00017397,2]
[351425619,1738566651751,-500.0,0.00017397,2]
[351425620,1738566651761,-500.0,0.00017397,2]
[351425621,1738566651770,-538.48,0.00017397,2]
[351425622,1738566651779,-418.181312,0.00017397,2]
[351425623,1738566651788,-418.181312,0.00017397,2]
[351425624,1738566651798,-889.56,0.00017397,2]
[351425625,1738566651807,-500.0,0.00017397,2]
[351425626,1738566651816,-500.0,0.00017397,2]
[351425627,1738566651829,-500.0,0.00017397,2]
[351425628,1738566651839,-500.0,0.00017397,2]
[351425629,1738566651848,-565.19,0.00017397,2]
[351425630,1738566651858,-500.0,0.00017397,2]
[351425631,1738566651870,-500.0,0.00017397,2]
[351425632,1738566651879,-633.53,0.00017397,2]
[351425633,1738566651888,-619.09,0.00017397,2]
[351425634,1738566651897,-595.50000055,0.00017397,2]
[351425635,1738566651906,-500.0,0.00017397,2]
[351425636,1738566651915,-500.0,0.00017397,2]
[351425637,1738566651924,-500.0,0.00017397,2]
[351425638,1738566651933,-500.0,0.00017397,2]
[351425639,1738566651942,-500.0,0.00017397,2]
[351425640,1738566651955,-500.0,0.00017397,2]
[351425641,1738566651964,-628.12,0.00017397,2]
[351425642,1738566651973,-151.0,0.00017397,2]
[351425643,1738566651982,-500.0,0.00017397,2]
[351425644,1738566651991,-159.632322,0.00017397,2]
[351425645,1738566651999,-200.544885,0.00017397,2]
[351425646,1738566652009,-200.544885,0.00017397,2]
[351425647,1738566652018,-500.0,0.00017397,2]
[351425648,1738566652028,-500.0,0.00017397,2]
[351425649,1738566652037,-500.0,0.00017397,2]
[351425650,1738566652047,-500.0,0.00017397,2]
[351425651,1738566652056,-513.07,0.00017397,2]
[351425652,1738566652066,-569.36,0.00017397,2]
[351425653,1738566652075,-602.71,0.00017397,2]
[351425654,1738566652085,-658.74,0.00017397,2]
[351425655,1738566652095,-500.0,0.00017397,2]
[351425656,1738566652104,-500.0,0.00017397,2]
[351425657,1738566652114,-500.0,0.00017397,2]
[351425658,1738566652126,-500.0,0.00017397,2]
[351425659,1738566652136,-500.0,0.00017397,2]
[351425660,1738566652144,-500.0,0.00017397,2]
[351425661,1738566652153,-500.0,0.00017397,2]
[351425662,1738566652162,-500.0,0.00017397,2]
[351425663,1738566652171,-500.0,0.00017397,2]
[351425664,1738566652181,-500.0,0.00017397,2]
[351425665,1738566652190,-500.0,0.00017397,2]
[351425666,1738566652199,-500.0,0.00017397,2]
[351425667,1738566652209,-500.0,0.00017397,2]
[351425668,1738566652218,-500.0,0.00017397,2]
[351425669,1738566652228,-505.66831134,0.00017397,2]
[351425670,1738566652236,-500.0,0.00017397,2]
[351425671,1738566652244,-558.37,0.00017397,2]
[351425672,1738566652254,-424.116551,0.00017397,2]
[351425673,1738566652263,-424.116551,0.00017397,2]
[351425674,1738566652272,-543.56,0.00017397,2]
[351425675,1738566652282,-151.0,0.00017397,2]
[351425676,1738566652291,-500.0,0.00017397,2]
[351425677,1738566652302,-500.0,0.00017397,2]
[351425678,1738566652312,-567.36,0.00017397,2]
[351425679,1738566652321,-593.93,0.00017397,2]
[351425680,1738566652331,-1178.59,0.00017397,2]
[351425681,1738566652341,-1456.62,0.00017397,2]
[351425682,1738566652351,-960.4,0.00017397,2]
[351425683,1738566652361,-500.0,0.00017397,2]
[351425684,1738566652374,-739.54,0.00017397,2]
[351425685,1738566652383,-500.0,0.00017397,2]
[351425686,1738566652393,-1726.8,0.00017397,2]
[351425687,1738566652404,-505.28281539,0.00017397,2]
[351425688,1738566652414,-500.0,0.00017397,2]
[351425689,1738566652424,-2218.13,0.00017397,2]
[351425690,1738566652433,-500.0,0.00017397,2]
[351425691,1738566652442,-1325.61,0.00017397,2]
[351425692,1738566652451,-500.0,0.00017397,2]
[351425693,1738566652460,-162.082593,0.00017397,2]
[351425694,1738566652470,-500.0,0.00017397,2]
[351425695,1738566652479,-162.082593,0.00017397,2]
[351425696,1738566652488,-3962.47,0.00017397,2]
[351425697,1738566652497,-500.0,0.00017397,2]
[351425698,1738566652508,-164.399809,0.00017397,2]
[351425699,1738566652518,-803.39,0.00017397,2]
[351425700,1738566652527,-500.0,0.00017397,2]
[351425701,1738566652537,-500.0,0.00017397,2]
[351425702,1738566652546,-164.399809,0.00017397,2]
[351425703,1738566652557,-586.48,0.00017397,2]
[351425704,1738566652566,-2414.73,0.00017397,2]
[351425705,1738566652576,-500.0,0.00017397,2]
[351425706,1738566652585,-500.0,0.00017397,2]
[351425707,1738566652595,-603.88,0.00017397,2]
[351425708,1738566652604,-838.457006,0.00017397,2]
[351425709,1738566652613,-500.0,0.00017397,2]
[351425710,1738566652628,-500.0,0.00017397,2]
[351425711,1738566652637,-838.457006,0.00017397,2]
[351425712,1738566652646,-4011.08,0.00017397,2]
[351425713,1738566652655,-986.66,0.00017397,2]
[351425714,1738566652664,-444.97568995,0.00017397,2]
[351425715,1738566652673,-500.0,0.00017397,2]
[351425716,1738566652683,-3160.39,0.00017397,2]
[351425717,1738566652692,-500.0,0.00017397,2]
[351425718,1738566652701,-500.0,0.00017397,2]
[351425719,1738566652711,-9304.74,0.00017397,2]
[351425720,1738566652720,-500.0,0.00017397,2]
[351425721,1738566652731,-500.0,0.00017397,2]
[351425722,1738566652742,-1439.17,0.00017397,2]
[351425723,1738566652752,-500.0,0.00017397,2]
[351425724,1738566652762,-1203.81,0.00017397,2]
[351425725,1738566652773,-500.0,0.00017397,2]
[351425726,1738566652782,-593.75,0.00017397,2]
[351425727,1738566652798,-500.0,0.00017397,2]
[351425728,1738566652807,-500.0,0.00017397,2]
[351425729,1738566652816,-500.0,0.00017397,2]
[351425730,1738566652825,-478.88431393,0.00017397,2]
[351425731,1738566652836,-589.27,0.00017397,2]
[351425732,1738566652845,-829.0,0.00017397,2]
[351425733,1738566652855,-646.74,0.00017397,2]
[351425734,1738566652864,-500.0,0.00017397,2]
[351425735,1738566652875,-500.0,0.00017397,2]
[351425736,1738566652884,-500.0,0.00017397,2]
[351425737,1738566652893,-776.57,0.00017397,2]
[351425738,1738566652902,-60036.29,0.00017397,2]
[351425739,1738566652911,-747.11,0.00017397,2]
[351425740,1738566652922,-500.0,0.00017397,2]
[351425741,1738566652931,-500.0,0.00017397,2]
[351425742,1738566652942,-1220.82,0.00017397,2]
[351425743,1738566652951,-500.0,0.00017397,2]
[351425744,1738566652962,-500.0,0.00017397,2]
[351425745,1738566652972,-500.0,0.00017397,2]
[351425746,1738566652984,-500.0,0.00017397,2]
[351425747,1738566652993,-1343.37,0.00017397,2]
[351425748,1738566653003,-13816.97,0.00017397,2]
[351425749,1738566653012,-500.0,0.00017397,2]
[351425750,1738566653022,-531.29727634,0.00017397,2]
[351425751,1738566653031,-500.0,0.00017397,2]
[351425752,1738566653040,-704.42,0.00017397,2]
[351425753,1738566653052,-500.0,0.00017397,2]
[351425754,1738566653062,-2164.57,0.00017397,2]
[351425755,1738566653073,-2634.75,0.00017397,2]
[351425756,1738566653082,-894.5,0.00017397,2]
[351425757,1738566653092,-538.94,0.00017397,2]
[351425758,1738566653102,-500.0,0.00017397,2]
[351425759,1738566653112,-1586.39,0.00017397,2]
[351425760,1738566653123,-151.0,0.00017397,2]
[351425761,1738566653133,-609.26,0.00017397,2]
[351425762,1738566653143,-500.0,0.00017397,2]
[351425763,1738566653152,-5712.66,0.00017397,2]
[351425764,1738566653165,-1112.34,0.00017397,2]
[351425765,1738566653174,-1163.8,0.00017397,2]
[351425766,1738566653183,-795.43,0.00017397,2]
[351425767,1738566653192,-500.0,0.00017397,2]
[351425768,1738566653202,-500.0,0.00017397,2]
[351425769,1738566653211,-500.0,0.00017397,2]
[351425770,1738566653221,-500.0,0.00017397,2]
[351425771,1738566653230,-575.26,0.00017397,2]
[351425772,1738566653239,-722.58,0.00017397,2]
[351425773,1738566653249,-2753.55,0.00017397,2]
[351425774,1738566653257,-500.0,0.00017397,2]
[351425775,1738566653267,-500.0,0.00017397,2]
[351425776,1738566653276,-500.0,0.00017397,2]
[351425777,1738566653286,-1433.14991822,0.00017449,2]
[351425778,1738566653296,-1281.03941102,0.00017472,2]
[351425779,1738566653305,-151.0,0.00017472,2]
[351425780,1738566653314,-420.703244,0.00017499,2]
[351425781,1738566653324,-420.703244,0.00017499,2]
[351425782,1738566653333,-457.766663,0.00017499,2]
[351425783,1738566653343,-457.766663,0.00017499,2]
[351425784,1738566653352,-576124.07770222,0.000175,15]
[351425785,1738566653723,-252.60326491,0.000175,15]
[351425786,1738566653735,-4572.83141223,0.000175,15]
[351425787,1738566653933,-645.8,0.00016986,2]
[351425788,1738566653943,-645.8,0.00017123,2]
[351425789,1738566653952,-645.8,0.0001726,2]
[351425790,1738566653962,-38750.93624399,0.00017396,5]
[351425791,1738566653971,-645.8,0.00017397,2]
[351425792,1738566653981,-1031861.43894585,0.000175,15]
[351425793,1738566653992,-78771.80102125,0.000175,15]
[351425794,1738566654004,-5829.84339224,0.000175,15]
[351425795,1738566654015,-2547.20648903,0.000175,15]
[351425796,1738566654026,-497.19230096,0.000175,15]
[351425797,1738566654298,-396.0,0.00017473,2]
[351425798,1738566654308,-8853.42850716,0.000175,15]
[351425799,1738566654375,-153.0,0.0001683,2]
[351425800,1738566654384,-358.15344725,0.000175,15]
[351425803,1738566722797,500.0,0.00014164,2]
[351425804,1738566898095,185.502272,0.00013699,2]
[351425806,1738567016510,11878.08865619,0.00015,2]
[351425807,1738567016545,7062.08046751,0.00015,2]
[351425811,1738567466606,400.0,0.00013973,2]
[351425813,1738567547132,-166.38005553,0.0001557,2]
[351425814,1738567547155,-239.502619,0.00015728,2]
[351425815,1738567547177,-300.0,0.00016437,2]
[351425816,1738567547199,-500.0,0.00016438,2]
[351425817,1738567547222,-500.0,0.00016438,2]
[351425818,1738567547244,-416.09011951,0.00016438,2]
[351425819,1738567551102,-83.90988049,0.00016438,2]
[351425820,1738567551124,-441.77554709,0.00016438,2]
[351425821,1738567630132,-300.0,0.00016437,2]
[351425822,1738567630160,-500.0,0.00016438,2]
[351425823,1738567630185,-500.0,0.00016438,2]
[351425824,1738567630209,-500.0,0.00016438,2]
[351425825,1738567630234,-500.0,0.00016438,2]
[351425826,1738567630258,-500.0,0.00016438,2]
[351425827,1738567630283,-500.0,0.00016438,2]
[351425828,1738567630309,-500.0,0.00016438,2]
[351425829,1738567630334,-271.99392976,0.00016438,2]
[351425830,1738567630359,-500.0,0.00016438,2]
[351425831,1738567630384,-535.59,0.00016438,2]
[351425832,1738567630412,-500.0,0.00016438,2]
[351425833,1738567630437,-500.0,0.00016438,2]
[351425834,1738567630462,-500.0,0.00016438,2]
[351425835,1738567630487,-500.0,0.00016438,2]
[351425836,1738567630513,-500.0,0.00016438,2]
[351425837,1738567630539,-500.0,0.00016438,2]
[351425838,1738567630565,-500.0,0.00016438,2]
[351425839,1738567630591,-500.0,0.00016438,2]
[351425840,1738567630615,-500.0,0.00016438,2]
[351425841,1738567630640,-964.66,0.00016438,2]
[351425842,1738567630669,-500.0,0.00016438,2]
[351425843,1738567630695,-500.0,0.00016438,2]
[351425844,1738567630722,-500.0,0.00016438,2]
[351425845,1738567630746,-500.0,0.00016438,2]
[351425846,1738567630769,-500.0,0.00016438,2]
[351425847,1738567630794,-202.87566414,0.00016438,2]
[351425848,1738567646093,-297.12433586,0.00016438,2]
[351425849,1738567646119,-500.0,0.00016438,2]
[351425850,1738567646144,-80.98116176,0.00016438,2]
[351425852,1738567696339,18299.71238919,0.0002,120]
[351425856,1738567732578,185.502272,0.00013699,2]
[351425857,1738567777597,3465.59021024,0.00020453,120]
[351425906,1738567832700,-2060.59555365,0.000164,2]
[351425908,1738567832711,-300.0,0.00016437,2]
[351425911,1738567832721,-500.0,0.00016438,2]
[351425912,1738567832730,-500.0,0.00016438,2]
[351425915,1738567832740,-500.0,0.00016438,2]
[351425916,1738567832749,-500.0,0.00016438,2]
[351425919,1738567832759,-500.0,0.00016438,2]
[351425920,1738567832769,-295.34742,0.00016438,2]
[351425922,1738567832778,-500.0,0.00016438,2]
[351425924,1738567832787,-500.0,0.00016438,2]
[351425926,1738567832796,-500.0,0.00016438,2]
[351425928,1738567832805,-371.76582934,0.00016438,2]
[351425930,1738567832816,-355.28553939,0.00016438,2]
[351425932,1738567832826,-500.0,0.00016438,2]
[351425934,1738567832835,-500.0,0.00016438,2]
[351425936,1738567832844,-500.0,0.00016438,2]
[351425938,1738567832854,-500.0,0.00016438,2]
[351425940,1738567832864,-500.0,0.00016438,2]
[351425942,1738567832874,-500.0,0.00016438,2]
[351425944,1738567832884,-500.0,0.00016438,2]
[351425946,1738567832894,-500.0,0.00016438,2]
[351425948,1738567832904,-566.23,0.00016438,2]
[351425950,1738567832916,-500.0,0.00016438,2]
[351425952,1738567832926,-500.0,0.00016438,2]
[351425954,1738567832936,-500.0,0.00016438,2]
[351425956,1738567832945,-500.0,0.00016438,2]
[351425958,1738567832955,-500.0,0.00016438,2]
[351425960,1738567832964,-500.0,0.00016438,2]
[351425962,1738567832974,-500.0,0.00016438,2]
[351425964,1738567832983,-500.0,0.00016438,2]
[351425966,1738567832994,-500.0,0.00016438,2]
[351425968,1738567833003,-500.0,0.00016438,2]
[351425970,1738567833012,-500.0,0.00016438,2]
[351425972,1738567833022,-500.0,0.00016438,2]
[351425974,1738567833031,-500.0,0.00016438,2]
[351425976,1738567833040,-500.0,0.00016438,2]
[351425978,1738567833049,-500.0,0.00016438,2]
[351425980,1738567833060,-572.48,0.00016438,2]
[351425982,1738567833072,-500.0,0.00016438,2]
[351425984,1738567833082,-500.0,0.00016438,2]
[351425986,1738567833092,-500.0,0.00016438,2]
[351425988,1738567833102,-500.0,0.00016438,2]
[351425990,1738567833112,-500.0,0.00016438,2]
[351426008,1738567833276,-785.72,0.00016438,2]
[351426010,1738567833287,-500.0,0.00016438,2]
[351426012,1738567833298,-500.0,0.00016438,2]
[351426014,1738567833309,-855.13,0.00016438,2]
[351426016,1738567833323,-500.0,0.00016438,2]
[351426018,1738567833333,-500.0,0.00016438,2]
[351426020,1738567833345,-500.0,0.00016438,2]
[351426022,1738567833355,-883.74,0.00016438,2]
[351426025,1738567833365,-500.0,0.00016438,2]
[351426027,1738567833374,-500.0,0.00016438,2]
[351426029,1738567833384,-500.0,0.00016438,2]
[351426030,1738567833395,-500.0,0.00016438,2]
[351426033,1738567833405,-500.0,0.00016438,2]
[351426034,1738567833414,-500.0,0.00016438,2]
[351426037,1738567833424,-500.0,0.00016438,2]
[351426038,1738567833434,-505.94,0.00016438,2]
[351426041,1738567833443,-500.0,0.00016438,2]
[351426042,1738567833453,-500.0,0.00016438,2]
[351426045,1738567833462,-506.67663468,0.00016438,2]
[351426046,1738567833472,-500.0,0.00016438,2]
[351426048,1738567833481,-500.0,0.00016438,2]
[351426050,1738567833491,-500.0,0.00016438,2]
[351426053,1738567833501,-505.01743744,0.00016438,2]
[351426055,1738567833511,-640.26,0.00016438,2]
[351426057,1738567833521,-500.0,0.00016438,2]
[351426059,1738567833531,-1837.38,0.00016438,2]
[351426061,1738567833541,-1478.76,0.00016438,2]
[351426063,1738567833552,-500.0,0.00016438,2]
[351426065,1738567833562,-500.0,0.00016438,2]
[351426067,1738567833573,-2641.65,0.00016438,2]
[351426069,1738567833583,-500.0,0.00016438,2]
[351426071,1738567833594,-500.0,0.00016438,2]
[351426073,1738567833603,-500.0,0.00016438,2]
[351426075,1738567833613,-500.0,0.00016438,2]
[351426077,1738567833622,-500.0,0.00016438,2]
[351426079,1738567833632,-500.0,0.00016438,2]
[351426081,1738567833642,-500.0,0.00016438,2]
[351426083,1738567833652,-500.0,0.00016438,2]
[351426085,1738567833661,-1151.2,0.00016438,2]
[351426087,1738567833671,-657.77,0.00016438,2]
[351426089,1738567833680,-500.0,0.00016438,2]
[351426091,1738567833690,-2106.93,0.00016438,2]
[351426093,1738567833699,-567.75,0.00016438,2]
[351426095,1738567833709,-500.0,0.00016438,2]
[351426097,1738567833718,-6381.48,0.00016438,2]
[351426098,1738567833728,-9490.76,0.00016438,2]
[351426100,1738567833737,-513.28,0.00016438,2]
[351426101,1738567833748,-959.45,0.00016438,2]
[351426102,1738567833758,-40110.56,0.00016438,2]
[351426103,1738567833768,-2674.05,0.00016438,2]
[351426104,1738567833778,-500.0,0.00016438,2]
[351426105,1738567833788,-802.54,0.00016438,2]
[351426106,1738567833798,-500.0,0.00016438,2]
[351426107,1738567833808,-1094.36,0.00016438,2]
[351426108,1738567833819,-500.0,0.00016438,2]
[351426109,1738567833829,-500.0,0.00016438,2]
[351426110,1738567833838,-895.58,0.00016438,2]
[351426111,1738567833848,-500.0,0.00016438,2]
[351426112,1738567833858,-500.0,0.00016438,2]
[351426113,1738567833868,-802.03,0.00016438,2]
[351426114,1738567833877,-500.0,0.00016438,2]
[351426115,1738567833887,-500.0,0.00016438,2]
[351426116,1738567833897,-500.0,0.00016438,2]
[351426117,1738567833908,-517.72,0.00016438,2]
[351426118,1738567833920,-500.0,0.00016438,2]
[351426119,1738567833929,-500.0,0.00016438,2]
[351426120,1738567833939,-500.0,0.00016438,2]
[351426121,1738567833951,-500.0,0.00016438,2]
[351426122,1738567833960,-500.0,0.00016438,2]
[351426124,1738567833970,-500.0,0.00016438,2]
[351426126,1738567833979,-813.88,0.00016438,2]
[351426128,1738567833990,-924.47,0.00016438,2]
[351426129,1738567834000,-500.0,0.00016438,2]
[351426130,1738567834011,-500.0,0.00016438,2]
[351426131,1738567834021,-500.0,0.00016438,2]
[351426132,1738567834030,-500.0,0.00016438,2]
[351426133,1738567834040,-500.0,0.00016438,2]
[351426134,1738567834050,-500.0,0.00016438,2]
[351426135,1738567834059,-1443.05,0.00016438,2]
[351426136,1738567834071,-500.0,0.00016438,2]
[351426137,1738567834081,-1756.5,0.00016438,2]
[351426138,1738567834091,-530.29,0.00016438,2]
[351426139,1738567834100,-500.0,0.00016438,2]
[351426140,1738567834110,-500.0,0.00016438,2]
[351426141,1738567834119,-500.0,0.00016438,2]
[351426142,1738567834128,-500.0,0.00016438,2]
[351426143,1738567834138,-775.87,0.00016438,2]
[351426144,1738567834147,-500.0,0.00016438,2]
[351426145,1738567834157,-741.56,0.00016438,2]
[351426146,1738567834166,-508.69,0.00016438,2]
[351426147,1738567834176,-500.0,0.00016438,2]
[351426148,1738567834185,-500.0,0.00016438,2]
[351426149,1738567834195,-3946.12,0.00016438,2]
[351426150,1738567834204,-500.0,0.00016438,2]
[351426151,1738567834214,-538.17,0.00016438,2]
[351426152,1738567834224,-500.0,0.00016438,2]
[351426153,1738567834233,-500.0,0.00016438,2]
[351426154,1738567834242,-500.0,0.00016438,2]
[351426155,1738567834252,-1609.82,0.00016438,2]
[351426156,1738567834262,-500.0,0.00016438,2]
[351426157,1738567834271,-593.04,0.00016438,2]
[351426158,1738567834280,-500.0,0.00016438,2]
[351426159,1738567834290,-500.0,0.00016438,2]
[351426160,1738567834300,-971.08,0.00016438,2]
[351426161,1738567834311,-500.0,0.00016574,2]
[351426162,1738567834326,-549.40722722,0.00016574,2]
[351426163,1738567834336,-224.3621306,0.00016575,2]
[351426164,1738567834346,-322.32203784,0.00016575,2]
[351426165,1738567834356,-500.0,0.00016575,2]
[351426166,1738567834367,-500.0,0.00016575,2]
[351426167,1738567834377,-500.0,0.00016575,2]
[351426168,1738567834387,-500.0,0.00016575,2]
[351426169,1738567834398,-174.70184634,0.00016575,2]
[351426170,1738567834407,-500.0,0.00016575,2]
[351426171,1738567834417,-500.0,0.00016575,2]
[351426172,1738567834427,-432.62271909,0.00016575,2]
[351426173,1738567834437,-500.0,0.00016575,2]